Workbook

Sheet cdap
A1: TM1 | B1: H | C1: M | D1: N | E1: Total | F1: ASIM | G1: H | H1: M | I1: N | J1: Total | K1: DIFF | L1: H | M1: M | N1: N | O1: Total
A2: Full-time worker | B2: 23,681 | C2: 246,610 | D2: 28,333 | E2: =SUM(B2:D2) -> 298,624 | F2: Full-time worker | G2: 24,336 | H2: 246,634 | I2: 27,654 | J2: =SUM(G2:I2) -> 298,624 | K2: =A2 -> Full-time worker | L2: =G2-B2 -> 655 | M2: =H2-C2 -> 24 | N2: =I2-D2 -> (679) | O2: =J2-E2 -> 0
A3: Part-time worker | B3: 7,790 | C3: 47,334 | D3: 18,890 | E3: =SUM(B3:D3) -> 74,014 | F3: Part-time worker | G3: 8,306 | H3: 46,562 | I3: 19,146 | J3: =SUM(G3:I3) -> 74,014 | K3: =A3 -> Part-time worker | L3: =G3-B3 -> 516 | M3: (772) | N3: 256 | O3: 0
A4: University student | B4: 3,400 | C4: 33,568 | D4: 10,027 | E4: 46,995 | F4: University student | G4: 3,818 | H4: 33,581 | I4: 9,596 | J4: 46,995 | K4: University student | L4: 418 | M4: 13 | N4: (431) | O4: 0
A5: Non-worker | B5: 19,510 | C5: 0 | D5: 84,491 | E5: 104,001 | F5: Non-worker | G5: 16,875 | H5: 0 | I5: 87,126 | J5: 104,001 | K5: Non-worker | L5: (2,635) | M5: 0 | N5: 2,635 | O5: 0
A6: Retired | B6: 14,390 | C6: 0 | D6: 53,162 | E6: 67,552 | F6: Retired | G6: 14,338 | H6: 0 | I6: 53,214 | J6: 67,552 | K6: Retired | L6: (52) | M6: 0 | N6: 52 | O6: 0
A7: Student of driving age | B7: 2,977 | C7: 18,079 | D7: 2,506 | E7: 23,562 | F7: Student of driving age | G7: 3,577 | H7: 17,860 | I7: 2,125 | J7: 23,562 | K7: Student of driving age | L7: 600 | M7: (219) | N7: (381) | O7: 0
A8: Student of non-driving age | B8: 8,912 | C8: 68,869 | D8: 11,676 | E8: 89,457 | F8: Student of non-driving age | G8: 8,124 | H8: 70,759 | I8: 10,574 | J8: 89,457 | K8: Student of non-driving age | L8: (788) | M8: 1,890 | N8: (1,102) | O8: 0
A9: Child too young for school | B9: 6,787 | C9: 35,413 | D9: 10,735 | E9: 52,935 | F9: Child too young for school | G9: 7,663 | H9: 33,840 | I9: 11,432 | J9: 52,935 | K9: Child too young for school | L9: 876 | M9: (1,573) | N9: 697 | O9: 0
A10: Total | B10: =SUM(B2:B9) -> 87,447 | C10: =SUM(C2:C9) -> 449,873 | D10: 219,820 | E10: 757,140 | G10: 87,037 | H10: 449,236 | I10: 220,867 | J10: 757,140 | L10: (410) | M10: (637) | N10: 1,047 | O10: 0
A13: TM1 | B13: H | C13: M | D13: N | E13: Total | F13: ASIM | G13: H | H13: M | I13: N | J13: Total | K13: DIFF | L13: H | M13: M | N13: N | O13: Total
A14: Full-time worker | B14: =B2/$E2 -> 7.9% | C14: =C2/$E2 -> 82.6% | D14: 9.5% | E14: 100.0% | F14: Full-time worker | G14: =G2/$E2 -> 8.1% | H14: 82.6% | I14: 9.3% | J14: 100.0% | K14: =A14 -> Full-time worker | L14: =G14-B14 -> 0.2% | M14: =H14-C14 -> 0.0% | N14: =I14-D14 -> -0.2% | O14: =J14-E14 -> 0.0%
A15: Part-time worker | B15: =B3/$E3 -> 10.5% | C15: 64.0% | D15: 25.5% | E15: 100.0% | F15: Part-time worker | G15: =G3/$E3 -> 11.2% | H15: 62.9% | I15: 25.9% | J15: 100.0% | K15: =A15 -> Part-time worker | L15: =G15-B15 -> 0.7% | M15: -1.0% | N15: 0.3% | O15: 0.0%
A16: University student | B16: =B4/$E4 -> 7.2% | C16: 71.4% | D16: 21.3% | E16: 100.0% | F16: University student | G16: =G4/$E4 -> 8.1% | H16: 71.5% | I16: 20.4% | J16: 100.0% | K16: University student | L16: 0.9% | M16: 0.0% | N16: -0.9% | O16: 0.0%
A17: Non-worker | B17: =B5/$E5 -> 18.8% | C17: 0.0% | D17: 81.2% | E17: 100.0% | F17: Non-worker | G17: =G5/$E5 -> 16.2% | H17: 0.0% | I17: 83.8% | J17: 100.0% | K17: Non-worker | L17: -2.5% | M17: 0.0% | N17: 2.5% | O17: 0.0%
A18: Retired | B18: =B6/$E6 -> 21.3% | C18: 0.0% | D18: 78.7% | E18: 100.0% | F18: Retired | G18: =G6/$E6 -> 21.2% | H18: 0.0% | I18: 78.8% | J18: 100.0% | K18: Retired | L18: -0.1% | M18: 0.0% | N18: 0.1% | O18: 0.0%
A19: Student of driving age | B19: =B7/$E7 -> 12.6% | C19: 76.7% | D19: 10.6% | E19: 100.0% | F19: Student of driving age | G19: =G7/$E7 -> 15.2% | H19: 75.8% | I19: 9.0% | J19: 100.0% | K19: Student of driving age | L19: 2.5% | M19: -0.9% | N19: -1.6% | O19: 0.0%
A20: Student of non-driving age | B20: =B8/$E8 -> 10.0% | C20: 77.0% | D20: 13.1% | E20: 100.0% | F20: Student of non-driving age | G20: =G8/$E8 -> 9.1% | H20: 79.1% | I20: 11.8% | J20: 100.0% | K20: Student of non-driving age | L20: -0.9% | M20: 2.1% | N20: -1.2% | O20: 0.0%
A21: Child too young for school | B21: =B9/$E9 -> 12.8% | C21: 66.9% | D21: 20.3% | E21: 100.0% | F21: Child too young for school | G21: =G9/$E9 -> 14.5% | H21: 63.9% | I21: 21.6% | J21: 100.0% | K21: Child too young for school | L21: 1.7% | M21: -3.0% | N21: 1.3% | O21: 0.0%
A22: Total | B22: =B10/$E10 -> 11.5% | C22: 59.4% | D22: 29.0% | E22: 100.0% | G22: =G10/$E10 -> 11.5% | H22: 59.3% | I22: 29.2% | J22: 100.0% | L22: -0.1% | M22: -0.1% | N22: 0.1% | O22: 0.0%
